fUSD/lending_fUSD_20250814
["ID","MTS","AMOUNT","RATE_DAILY","PERIOD"]
[379239117,1755211839666,-800.125368,0.00025651,2]
[379239119,1755211839675,-168.0,0.00025667,7]
[379239121,1755211839685,-1024.0,0.00025668,7]
[379239123,1755211839695,-917.90210475,0.00025668,2]
[379239125,1755211839704,-275.4384,0.00025677,2]
[379239127,1755211839714,-239.69509286,0.00025677,2]
[379239129,1755211839723,-8600.3183046,0.00025677,2]
[379239131,1755211839733,-973.7,0.00025678,2]
[379239133,1755211839742,-1500.0,0.00025687,2]
[379239135,1755211839755,-4808.2888,0.00025687,2]
[379239137,1755211839765,-150.0,0.00025689,2]
[379239139,1755211839775,-256.72141881,0.00025689,2]
[379239141,1755211839784,-1024.0,0.00025689,2]
[379239143,1755211839793,-917.90210475,0.00025697,2]
[379239145,1755211839803,-2700.0,0.000257,9]
[379239147,1755211839812,-900.0,0.000257,9]
[379239149,1755211839822,-8600.31830451,0.00025702,2]
[379239152,1755211839831,-150.0,0.00025703,4]
[379239155,1755211839841,-500.0,0.00025703,2]
[379239158,1755211839850,-500.0,0.00025703,2]
[379239161,1755211839859,-150.0,0.00025722,4]
[379239164,1755211839868,-917.90210475,0.00025726,2]
[379239167,1755211839878,-8600.31830451,0.00025727,2]
[379239169,1755211839888,-1074.80287234,0.00025739,10]
[379239171,1755211839897,-364.38874097,0.00025739,2]
[379239173,1755211839906,-156.81058968,0.00025739,2]
[379239175,1755211839915,-217.50336005,0.00025739,2]
[379239177,1755211839924,-103237.53725022,0.0002574,2]
[379239179,1755211839932,-1024.0,0.00025745,7]
[379239181,1755211839941,-8600.31830451,0.00025751,2]
[379239182,1755211839951,-917.90210475,0.00025755,2]
[379239184,1755211839960,-420.0,0.00025758,2]
[379239186,1755211839970,-500.0,0.00025758,2]
[379239188,1755211839979,-500.0,0.00025758,2]
[379239190,1755211839988,-500.0,0.00025758,2]
[379239192,1755211839997,-500.0,0.00025774,2]
[379239194,1755211840006,-500.0,0.00025774,9]
[379239197,1755211840018,-150.0,0.00025774,9]
[379239199,1755211840027,-8600.31830451,0.00025776,2]
[379239201,1755211840036,-26739.2771,0.00025777,2]
[379239203,1755211840049,-1000.0,0.00025777,2]
[379239205,1755211840058,-102509.211775,0.00025777,2]
[379239207,1755211840067,-150.0,0.00025777,2]
[379239209,1755211840076,-207.77686672,0.00025777,2]
[379239211,1755211840087,-917.90210475,0.00025784,2]
[379239213,1755211840098,-1052.61,0.00025786,3]
[379239215,1755211840107,-190310.13,0.00025787,2]
[379239217,1755211840117,-200.0,0.00025792,2]
[379239219,1755211840126,-150.0,0.00025793,4]
[379239221,1755211840135,-150.0,0.00025793,4]
[379239223,1755211840145,-150.0,0.00025793,4]
[379239225,1755211840154,-150.0,0.00025793,4]
[379239226,1755211840163,-150.0,0.00025793,4]
[379239228,1755211840172,-150.0,0.00025793,4]
[379239230,1755211840183,-150.0,0.00025793,4]
[379239232,1755211840191,-150.0,0.00025793,4]
[379239234,1755211840201,-3600.0,0.000258,9]
[379239236,1755211840210,-1200.0,0.000258,9]
[379239239,1755211840220,-8600.31830451,0.00025801,2]
[379239240,1755211840229,-917.90210475,0.00025813,2]
[379239241,1755211840239,-8600.31830451,0.00025826,2]
[379239242,1755211840248,-9003.449,0.00025831,11]
[379239244,1755211840257,-384.836,0.00025838,11]
[379239246,1755211840266,-917.90210475,0.00025842,2]
[379239248,1755211840275,-8600.31830451,0.0002585,2]
[379239250,1755211840284,-150.0,0.00025856,2]
[379239252,1755211840294,-245.84,0.00025856,2]
[379239254,1755211840303,-150.0,0.00025865,4]
[379239256,1755211840312,-204.99361125,0.00025868,2]
[379239258,1755211840321,-917.90210475,0.00025871,2]
[379239261,1755211840330,-158.46943863,0.00025874,2]
[379239262,1755211840339,-14127.0326908,0.00025874,2]
[379239263,1755211840349,-8600.31830451,0.00025875,2]
[379239264,1755211840358,-204.99361125,0.00025876,2]
[379239265,1755211840367,-2567.0,0.00025878,11]
[379239266,1755211840376,-1038.68510857,0.00025883,2]
[379239267,1755211840385,-204.99361125,0.00025883,2]
[379239268,1755211840394,-150.0,0.00025884,4]
[379239269,1755211840403,-600.0,0.0002589,2]
[379239270,1755211840412,-151.0,0.0002589,2]
[379239271,1755211840421,-171.0,0.0002589,7]
[379239272,1755211840430,-3558.4704999,0.00025894,2]
[379239273,1755211840439,-1000.0,0.000259,2]
[379239274,1755211840448,-917.90210475,0.000259,2]
[379239275,1755211840458,-4500.0,0.000259,9]
[379239276,1755211840468,-1500.0,0.000259,9]
[379239277,1755211840478,-8600.31830451,0.000259,2]
[379239278,1755211840487,-329.0587912,0.000259,2]
[379239279,1755211840496,-164.06346403,0.000259,2]
[379239280,1755211840506,-239.6950928,0.00025908,2]
[379239281,1755211840517,-207.46,0.00025914,2]
[379239282,1755211840527,-14127.0326908,0.00025943,2]
[379239283,1755211840537,-84762.196145,0.00025953,2]
[379239284,1755211840547,-14127.0326908,0.00025962,2]
[379239285,1755211840556,-150.0,0.00025963,2]
[379239286,1755211840566,-56508.1307634,0.00025963,2]
[379239287,1755211840576,-151.0,0.00025968,2]
[379239288,1755211840586,-3999.99,0.00025972,2]
[379239289,1755211840596,-502.9880039,0.00025973,2]
[379239290,1755211840606,-500.0,0.00025973,2]
[379239291,1755211840615,-500.0,0.00025973,2]
[379239292,1755211840624,-500.0,0.00025973,2]
[379239293,1755211840634,-500.0,0.00025973,2]
[379239294,1755211840643,-500.0,0.00025973,2]
[379239295,1755211840653,-500.0,0.00025973,2]
[379239296,1755211840662,-500.0,0.00025973,2]
[379239297,1755211840671,-500.0,0.00025973,2]
[379239298,1755211840680,-500.0,0.00025973,2]
[379239299,1755211840690,-500.0,0.00025973,2]
[379239300,1755211840700,-500.0,0.00025973,2]
[379239301,1755211840709,-500.0,0.00025973,2]
[379239302,1755211840719,-500.0,0.00025973,2]
[379239303,1755211840729,-506.49765689,0.00025973,2]
[379239304,1755211840739,-500.0,0.00025973,2]
[379239305,1755211840748,-168.26151672,0.00025973,2]
[379239306,1755211840759,-502.78091185,0.00025973,2]
[379239307,1755211840768,-500.0,0.00025973,2]
[379239308,1755211840777,-500.0,0.00025973,2]
[379239309,1755211840787,-500.0,0.00025973,2]
[379239310,1755211840797,-323.90526316,0.00025973,2]
[379239311,1755211840806,-500.0,0.00025973,2]
[379239312,1755211840816,-500.0,0.00025973,2]
[379239313,1755211840826,-500.0,0.00025973,2]
[379239314,1755211840835,-500.0,0.00025973,2]
[379239315,1755211840846,-500.0,0.00025973,2]
[379239316,1755211840855,-169.06141551,0.00025973,2]
[379239317,1755211840864,-500.0,0.00025973,2]
[379239318,1755211840874,-500.0,0.00025973,2]
[379239319,1755211840883,-500.0,0.00025973,2]
[379239320,1755211840892,-219.71012623,0.00025973,2]
[379239321,1755211840901,-572.49417322,0.00025973,2]
[379239322,1755211840910,-500.0,0.00025973,2]
[379239323,1755211840921,-500.0,0.00025973,2]
[379239324,1755211840930,-500.0,0.00025973,2]
[379239325,1755211840940,-500.0,0.00025973,2]
[379239326,1755211840949,-500.0,0.00025973,2]
[379239327,1755211840958,-500.0,0.00025973,2]
[379239328,1755211840969,-500.0,0.00025973,2]
[379239329,1755211840978,-500.0,0.00025973,2]
[379239330,1755211840989,-500.81464652,0.00025973,2]
[379239331,1755211840998,-192.53148686,0.00025973,2]
[379239332,1755211841008,-803.77673706,0.00025973,2]
[379239333,1755211841018,-240159.555744,0.00025973,2]
[379239334,1755211841027,-177.96729879,0.00025974,2]
[379239335,1755211841036,-150.0,0.00025974,4]
[379239336,1755211841049,-500.0,0.00025977,2]
[379239337,1755211841059,-500.0,0.00025977,2]
[379239338,1755211841068,-2627.45321309,0.0002598,13]
[379239339,1755211841079,-738413.78982203,0.00025982,2]
[379239340,1755211841161,-4006.73,0.00025982,2]
[379239349,1755211843898,-118.71813683,0.00025982,2]
[379239391,1755211847465,-1135.35934954,0.00025655,2]
[379239393,1755211915244,888.0,0.0003013,120]
[379239394,1755211971970,869.0,0.0003013,120]
[379239395,1755212026049,176.2,0.00028051,120]
[379239396,1755212183382,155.93,0.00013699,2]
[379239399,1755212565287,429.88,0.00024685,30]
[379239411,1755213032027,-155.93,0.00021404,2]
[379239412,1755213032038,-150.0,0.00023704,2]
[379239413,1755213032047,-258.0123509,0.00023812,2]
[379239414,1755213032057,-302.60707822,0.0002392,2]
[379239415,1755213032066,-3361.95502811,0.00023926,2]
[379239416,1755213032077,-12.94589126,0.00024026,7]
[379239451,1755213038872,-157.05410874,0.00024026,7]
[379239452,1755213038882,-347.20180554,0.00024028,2]
[379239453,1755213038892,-195.48,0.00024029,2]
[379239454,1755213038901,-137.70885311,0.00024029,2]
[379239455,1755213038913,-22.46114689,0.00024029,2]
[379239456,1755213038924,-520.18,0.00024029,2]
[379239457,1755213038935,-161.51,0.00024029,2]
[379239458,1755213038945,-4042.09,0.00024037,2]
[379239459,1755213038955,-176.2,0.00024044,2]
[379239460,1755213038965,-160.17,0.00024089,2]
[379239461,1755213038977,-391.79653286,0.00024136,2]
[379239462,1755213038986,-164.36,0.00024142,2]
[379239463,1755213038995,-160.17,0.00024149,2]
[379239464,1755213039006,-1000.0,0.00024157,2]
[379239465,1755213039016,-160.17,0.00024209,2]
[379239466,1755213039025,-436.39126017,0.00024244,2]
[379239467,1755213039035,-468.3,0.0002426,2]
[379239468,1755213039046,-160.17,0.00024269,2]
[379239469,1755213039056,-250.0,0.00024278,2]
[379239470,1755213039067,-4920.23,0.0002435,2]
[379239471,1755213039077,-480.98598749,0.00024352,2]
[379239472,1755213039086,-525.58071481,0.0002446,2]
[379239473,1755213039097,-570.17544212,0.00024568,2]
[379239474,1755213039108,-614.77016944,0.00024676,2]
[379239475,1755213039118,-1851.77676522,0.00024693,2]
[379239476,1755213039430,-1148.22323478,0.00024693,2]
[379239477,1755213039441,-277.35679052,0.00024693,2]
[379239478,1755213039450,-166.34,0.00024739,2]
[379239479,1755213039460,-172.28,0.00024783,2]
[379239480,1755213039469,-504.0999747,0.00024784,2]
[379239484,1755213040597,-155.26492206,0.00024784,2]
[379239485,1755213040607,-300.0,0.00024885,2]
[379239486,1755213040618,-200.0,0.00024885,2]
[379239487,1755213040627,-200.0,0.00024885,2]
[379239488,1755213040639,-200.0,0.00024885,2]
[379239489,1755213040653,-200.0,0.00024885,2]
[379239490,1755213040663,-200.0,0.00024885,2]
[379239491,1755213040672,-200.0,0.00024885,2]
[379239492,1755213040682,-200.0,0.00024885,2]
[379239493,1755213040691,-500.0,0.00024885,2]
[379239494,1755213040701,-500.0,0.00024885,2]
[379239495,1755213040711,-500.0,0.00024885,2]
[379239496,1755213040720,-160.0,0.00024885,2]
[379239497,1755213040730,-600.0,0.00024885,2]
[379239498,1755213040740,-151.0,0.00024885,2]
[379239499,1755213040750,-703.95962407,0.00024892,2]
[379239500,1755213040759,-17936.99265504,0.000249,2]
[379239501,1755213040770,-19999.99,0.0002498,2]
[379239502,1755213040779,-29999.99,0.0002498,2]
[379239503,1755213040789,-9852.18,0.0002498,2]
[379239504,1755213040798,-748.55435139,0.00024999,2]
[379239505,1755213040808,-171.0,0.00025,7]
[379239506,1755213040817,-1100.0,0.000251,9]
[379239507,1755213040827,-793.14907871,0.00025107,2]
[379239508,1755213040836,-2200.0,0.000252,9]
[379239509,1755213040845,-837.74380602,0.00025215,2]
[379239510,1755213040855,-462.56,0.00025219,2]
[379239511,1755213040864,-468.3,0.00025219,2]
[379239512,1755213040874,-195.48,0.0002523,2]
[379239513,1755213040884,-165.84,0.00025278,2]
[379239514,1755213040894,-20085.79,0.000253,14]
[379239515,1755213040903,-71049.24,0.000253,14]
[379239516,1755213040912,-4816.32,0.000253,14]
[379239517,1755213040922,-23818.86,0.000253,14]
[379239518,1755213040931,-1000.0,0.000253,2]
[379239519,1755213040940,-3300.0,0.000253,9]
[379239520,1755213040950,-882.33853334,0.00025323,2]
[379239521,1755213040959,-159.0,0.00025396,3]
[379239522,1755213040969,-4400.0,0.000254,9]
[379239523,1755213040979,-926.93326066,0.00025431,2]
[379239524,1755213040989,-600.0,0.00025433,2]
[379239525,1755213040999,-151.0,0.00025433,2]
[379239526,1755213041008,-2422.0,0.00025478,2]
[379239527,1755213041018,-1418.0,0.000255,2]
[379239528,1755213041027,-5500.0,0.000255,9]
[379239529,1755213041037,-500.0,0.000255,9]
[379239530,1755213041047,-500.0,0.000255,9]
[379239531,1755213041056,-200.0,0.000255,2]
[379239532,1755213041066,-500.0,0.000255,9]
[379239533,1755213041075,-1000.0,0.000255,2]
[379239534,1755213041086,-150.0,0.000255,9]
[379239535,1755213041097,-500.0,0.000255,9]
[379239536,1755213041107,-500.0,0.000255,9]
[379239537,1755213041117,-500.0,0.000255,9]
[379239538,1755213041128,-150.0,0.000255,2]
[379239539,1755213041138,-500.0,0.000255,9]
[379239540,1755213041147,-150.0,0.000255,9]
[379239541,1755213041157,-150.0,0.000255,9]
[379239542,1755213041166,-971.52798797,0.00025539,2]
[379239543,1755213041176,-4808.2888,0.0002554,2]
[379239544,1755213041186,-2500.0,0.00025555,2]
[379239545,1755213041196,-2500.0,0.00025555,2]
[379239546,1755213041206,-1000.0,0.00025555,2]
[379239547,1755213041217,-209.7332062,0.00025556,2]
[379239548,1755213041228,-7740.28647414,0.00025556,2]
[379239549,1755213041237,-7740.28647405,0.00025586,2]
[379239550,1755213041249,-1000.0,0.000256,2]
[379239551,1755213041261,-1100.0,0.000256,9]
[379239552,1755213041270,-154.31,0.000256,2]
[379239553,1755213041281,-1500.0,0.00025602,2]
[379239554,1755213041291,-305.04,0.00025614,2]
[379239555,1755213041301,-150.0,0.00025614,2]
[379239556,1755213041312,-150.0,0.00025614,2]
[379239557,1755213041321,-150.0,0.00025614,2]
[379239558,1755213041332,-300.0,0.00025614,2]
[379239559,1755213041341,-301.64,0.00025614,2]
[379239560,1755213041350,-150.0,0.00025614,2]
[379239561,1755213041359,-162.16,0.00025614,2]
[379239562,1755213041369,-150.0,0.00025614,2]
[379239563,1755213041378,-300.0,0.00025614,2]
[379239564,1755213041386,-150.0,0.00025614,2]
[379239565,1755213041397,-7740.28647405,0.00025615,2]
[379239566,1755213041410,-209.7332062,0.00025621,2]
[379239567,1755213041420,-181.00398615,0.00025629,2]
[379239568,1755213041429,-204.99361125,0.00025629,2]
[379239569,1755213041439,-1038.68510857,0.00025639,2]
[379239570,1755213041449,-1000.0,0.0002564,2]
[379239571,1755213041459,-34532.0512,0.0002564,2]
[379239572,1755213041469,-500.0,0.0002564,2]
[379239573,1755213041480,-500.0,0.0002564,2]
[379239574,1755213041491,-5724.0,0.0002564,2]
[379239575,1755213041500,-204.99361125,0.00025643,2]
[379239576,1755213041509,-7740.28647405,0.00025645,2]
[379239577,1755213041518,-15628.7599728,0.00025645,2]
[379239578,1755213041527,-15628.7599728,0.00025646,2]
[379239579,1755213041537,-1016.12271529,0.00025647,2]
[379239580,1755213041547,-1074.80287234,0.00025654,10]
[379239581,1755213041557,-526.04,0.00025654,2]
[379239582,1755213041568,-585.58224001,0.00025654,2]
[379239583,1755213041578,-500.0,0.00025654,2]
[379239584,1755213041588,-500.0,0.00025654,2]
[379239585,1755213041597,-5383.27,0.00025654,2]
[379239586,1755213041606,-1636.36,0.00025654,2]
[379239587,1755213041616,-2178.23,0.00025654,2]
[379239588,1755213041626,-189174.77065046,0.00025655,2]
[379239589,1755213041635,-150.0,0.00025656,2]
[379239590,1755213041645,-207.77686672,0.00025656,2]
[379239591,1755213041654,-204.99361125,0.00025656,2]
[379239592,1755213041664,-900.84544412,0.00025656,2]
[379239593,1755213041674,-7740.28647405,0.00025674,2]
[379239594,1755213041683,-3558.4704999,0.00025675,2]
[379239595,1755213041692,-181.00398608,0.0002568,2]
[379239596,1755213041702,-2376.0,0.0002568,2]
[379239597,1755213041711,-2422.0,0.00025685,2]
[379239598,1755213041722,-209.7332062,0.00025685,2]
[379239599,1755213041732,-5000.0,0.00025686,2]
[379239600,1755213041741,-1100.0,0.000257,9]
[379239601,1755213041751,-7740.28647405,0.00025704,2]
[379239602,1755213041760,-1038.68510851,0.00025716,2]
[379239603,1755213041770,-682504.10140566,0.00025719,2]
[379239604,1755213041779,-31257.5199455,0.00025719,2]
[379239605,1755213041789,-400.0,0.0002572,2]
[379239606,1755213041798,-400.0,0.0002572,2]
[379239607,1755213041807,-3558.47049987,0.0002572,2]
[379239608,1755213041817,-400.0,0.0002572,2]
[379239609,1755213041826,-871.53,0.0002572,2]
[379239610,1755213041835,-2845.8,0.0002572,2]
[379239611,1755213041845,-505.97574834,0.0002572,2]
[379239612,1755213041854,-1263.59,0.0002572,2]
[379239613,1755213041870,-400.0,0.0002572,2]
[379239614,1755213041879,-400.0,0.0002572,2]
[379239615,1755213041889,-400.0,0.0002572,2]
[379239616,1755213041899,-5541.96,0.0002572,2]
[379239617,1755213041909,-1202.24,0.0002572,2]
[379239618,1755213041918,-1710.0,0.0002572,2]
[379239619,1755213041928,-46886.2799183,0.0002572,2]
[379239620,1755213041938,-15628.7599728,0.00025725,2]
[379239621,1755213041948,-78143.7998637,0.00025729,2]
[379239622,1755213041957,-59516.665503,0.00025729,2]
[379239623,1755213041966,-192.53148686,0.00025729,2]
[379239624,1755213041976,-400.0,0.00025729,2]
[379239625,1755213041985,-400.0,0.00025729,2]
[379239626,1755213041995,-400.0,0.00025729,2]
[379239627,1755213042004,-400.0,0.00025729,2]
[379239628,1755213042014,-400.0,0.00025729,2]
[379239629,1755213042023,-400.0,0.00025729,2]
[379239630,1755213042033,-400.0,0.00025729,2]
[379239631,1755213042043,-400.0,0.00025729,2]
[379239632,1755213042053,-400.0,0.00025729,2]
[379239633,1755213042062,-400.0,0.00025729,2]
[379239634,1755213042074,-400.0,0.00025729,2]
[379239635,1755213042083,-400.0,0.00025729,2]
[379239636,1755213042093,-166.11470442,0.00025729,2]
[379239637,1755213042103,-400.0,0.00025729,2]
[379239638,1755213042112,-400.0,0.00025729,2]
[379239639,1755213042122,-400.0,0.00025729,2]
[379239640,1755213042132,-400.0,0.00025729,2]
[379239641,1755213042141,-400.0,0.00025729,2]
[379239642,1755213042151,-400.0,0.00025729,2]
[379239643,1755213042160,-400.0,0.00025729,2]
[379239644,1755213042170,-795.44,0.00025729,2]
[379239645,1755213042180,-400.0,0.00025729,2]
[379239646,1755213042189,-400.0,0.00025729,2]
[379239647,1755213042199,-400.0,0.00025729,2]
[379239648,1755213042208,-400.0,0.00025729,2]
[379239649,1755213042218,-400.0,0.00025729,2]
[379239650,1755213042228,-6216.63,0.00025729,2]
[379239651,1755213042238,-400.0,0.00025729,2]
[379239652,1755213042248,-400.0,0.00025729,2]
[379239653,1755213042257,-400.0,0.00025729,2]
[379239654,1755213042267,-8299.33,0.00025729,2]
[379239655,1755213042276,-400.0,0.00025729,2]
[379239656,1755213042286,-400.0,0.00025729,2]
[379239657,1755213042296,-519.01,0.00025729,2]
[379239658,1755213042305,-400.0,0.00025729,2]
[379239659,1755213042316,-400.0,0.00025729,2]
[379239660,1755213042327,-4184.565845,0.00025729,2]
[379239661,1755213042338,-400.0,0.00025729,2]
[379239662,1755213042349,-400.0,0.00025729,2]
[379239663,1755213042360,-10656.09,0.00025729,2]
[379239664,1755213042370,-400.0,0.00025729,2]
[379239665,1755213042380,-2369.48,0.00025729,2]
[379239666,1755213042390,-290.903022,0.00025729,2]
[379239667,1755213042407,-224.18677,0.00025729,2]
[379239668,1755213042417,-400.0,0.00025729,2]
[379239669,1755213042428,-4474.77,0.00025729,2]
[379239670,1755213042441,-3030.25344,0.00025729,2]
[379239671,1755213042452,-4497.582689,0.00025729,2]
[379239672,1755213042463,-4966.54,0.00025729,2]
[379239673,1755213042474,-3796.11,0.00025729,2]
[379239674,1755213042486,-10863.85,0.00025729,2]
[379239675,1755213042497,-251.21061,0.00025729,2]
[379239676,1755213042507,-400.0,0.00025729,2]
[379239678,1755213042516,-9303.39,0.00025729,2]
[379239679,1755213042527,-308.58213457,0.00025729,2]
[379239680,1755213042539,-400.0,0.00025729,2]
[379239682,1755213042548,-6953.15,0.00025729,2]
[379239683,1755213042557,-431.25305855,0.00025729,2]
[379239684,1755213042567,-6479.2,0.00025729,2]
[379239685,1755213042576,-400.0,0.00025729,2]
[379239686,1755213042586,-4224.5,0.00025729,2]
[379239687,1755213042595,-17344.49,0.00025729,2]
[379239688,1755213042605,-400.0,0.00025729,2]
[379239689,1755213042616,-25742.44,0.00025729,2]
[379239690,1755213042626,-5433.05,0.00025729,2]
[379239691,1755213042637,-7593.23,0.00025729,2]
[379239692,1755213042647,-400.0,0.00025729,2]
[379239693,1755213042658,-400.0,0.00025729,2]
[379239694,1755213042668,-8580.05,0.00025729,2]
[379239695,1755213042678,-400.0,0.00025729,2]
[379239696,1755213042688,-1086.36,0.00025729,2]
[379239697,1755213042699,-491.67636583,0.00025729,2]
[379239698,1755213042708,-400.0,0.00025729,2]
[379239700,1755213042717,-1482.29,0.00025729,2]
[379239702,1755213042727,-400.0,0.00025729,2]
[379239704,1755213042737,-400.0,0.00025729,2]
[379239705,1755213042746,-14187.77,0.00025729,2]
[379239706,1755213042757,-400.0,0.00025729,2]
[379239707,1755213042767,-400.0,0.00025729,2]
[379239708,1755213042777,-13441.01,0.00025729,2]
[379239709,1755213042787,-4391.92,0.00025729,2]
[379239710,1755213042797,-5569.61,0.00025729,2]
[379239711,1755213042806,-2178.23,0.00025729,2]
[379239712,1755213042816,-5409.75,0.00025729,2]
[379239713,1755213042826,-12310.04,0.00025729,2]
[379239714,1755213042835,-4678.64,0.00025729,2]
[379239715,1755213042845,-841.79839738,0.0002573,2]
[379239716,1755213042861,-1356.80889421,0.0002573,2]
[379239717,1755213042873,-336.66237983,0.0002573,2]
[379239718,1755213042886,-25463.8381742,0.0002573,2]
[379239722,1755213044621,-400.0,0.0002572,2]
[379239723,1755213044631,-2599.30259959,0.0002573,2]
[379239724,1755213045684,-3722.16,0.00025654,2]
[379239725,1755213045695,-2205.762,0.00025665,2]
[379239726,1755213045984,-1114.95015,0.00025665,2]
[379239730,1755213133572,361.41,0.00030136,120]
[379239731,1755213164984,736.91827158,0.000301,120]
[379239732,1755213296597,402.81,0.00030137,120]
[379239733,1755213493117,394.05,0.00024685,30]
[379239738,1755213735631,156.66,0.00013699,2]
[379239739,1755213908805,74315.88749246,0.00019,2]
[379239746,1755214053300,19680.57074588,0.00018,2]
[379239802,1755214240036,-156.93594392,0.00021404,2]
[379239803,1755214240047,-156.66,0.00021404,2]
[379239804,1755214240056,-150.0,0.00023277,2]
[379239805,1755214240065,-150.0,0.00023277,2]
[379239806,1755214240075,-150.0,0.00023277,2]
[379239807,1755214240084,-150.0,0.00023277,2]
[379239808,1755214240094,-150.0,0.00023277,2]
[379239809,1755214240103,-150.0,0.00023277,2]
[379239810,1755214240112,-150.0,0.00023277,2]
[379239811,1755214240122,-150.0,0.00023277,2]
[379239812,1755214240132,-150.0,0.00023277,2]
[379239813,1755214240142,-150.0,0.00023277,2]
[379239814,1755214240152,-150.0,0.00023277,2]
[379239815,1755214240161,-150.0,0.00023369,4]
[379239816,1755214240170,-150.0,0.0002342,4]
[379239817,1755214240180,-150.0,0.00023461,4]
[379239818,1755214240189,-150.0,0.00023512,4]
[379239819,1755214240198,-150.0,0.00023554,4]
[379239820,1755214240207,-150.0,0.00023564,4]
[379239821,1755214240217,-150.0,0.00023564,4]
[379239822,1755214240226,-150.0,0.000236,4]
[379239823,1755214240236,-150.0,0.00023619,2]
[379239824,1755214240245,-150.0,0.00023646,4]
[379239825,1755214240255,-150.0,0.00023646,4]
[379239826,1755214240264,-150.0,0.00023646,4]
[379239827,1755214240273,-170.0,0.0002365,7]
[379239828,1755214240283,-150.0,0.00023708,4]
[379239829,1755214240292,-150.0,0.00023708,4]
[379239830,1755214240302,-250.19881992,0.00023727,2]
[379239831,1755214240311,-150.0,0.00023739,4]
[379239832,1755214240321,-150.0,0.00023747,4]
[379239833,1755214240333,-150.0,0.00023831,4]
[379239834,1755214240343,-293.4430604,0.00023834,2]
[379239835,1755214240352,-150.0,0.00023851,4]
[379239836,1755214240363,-150.0,0.00023851,4]
[379239837,1755214240372,-150.0,0.00023923,4]
[379239838,1755214240381,-150.0,0.00023923,4]
[379239839,1755214240391,-150.0,0.00023923,4]
[379239840,1755214240402,-150.0,0.00023923,4]
[379239841,1755214240411,-150.0,0.00023923,4]
[379239842,1755214240420,-336.68730088,0.00023942,2]
[379239843,1755214240429,-150.0,0.00023982,4]
[379239844,1755214240438,-150.0,0.00023995,4]
[379239845,1755214240447,-150.0,0.00024016,4]
[379239846,1755214240456,-150.0,0.00024016,4]
[379239847,1755214240466,-150.0,0.00024016,4]
[379239848,1755214240475,-379.93154136,0.00024049,2]
[379239849,1755214240485,-195.48,0.0002408,2]
[379239850,1755214240495,-150.0,0.00024108,4]
[379239851,1755214240504,-260.09,0.00024113,2]
[379239852,1755214240513,-250.0,0.00024115,2]
[379239853,1755214240523,-150.0,0.00024139,4]
[379239854,1755214240532,-150.0,0.00024139,4]
[379239855,1755214240541,-150.0,0.00024139,4]
[379239856,1755214240551,-176.2,0.00024144,2]
[379239857,1755214240560,-1000.0,0.00024144,2]
[379239858,1755214240569,-423.17578184,0.00024157,2]
[379239859,1755214240578,-150.0,0.000242,4]
[379239860,1755214240587,-150.0,0.00024217,4]
[379239861,1755214240598,-150.0,0.00024247,4]
[379239862,1755214240608,-300.0,0.0002426,2]
[379239863,1755214240618,-150.0,0.0002426,2]
[379239864,1755214240627,-466.42002232,0.00024264,2]
[379239865,1755214240639,-150.0,0.00024282,4]
[379239866,1755214240649,-150.0,0.00024293,4]